fUSD/lending_fUSD_20240125
["ID","MTS","AMOUNT","RATE_DAILY","PERIOD"]
[312716860,1706188795399,-328.94074492,0.00049315,31]
[312716861,1706188795423,-8322.88,0.00049315,31]
[312716862,1706188795446,-500.0,0.00049315,31]
[312716863,1706188795470,-569.95,0.00049315,31]
[312716864,1706188795493,-616.19,0.00049315,31]
[312716865,1706188795518,-500.0,0.00049315,31]
[312716866,1706188795541,-512.19749779,0.00049315,31]
[312716867,1706188795565,-500.0,0.00049315,31]
[312716868,1706188795590,-500.0,0.00049315,31]
[312716869,1706188795615,-517.48674234,0.00049315,31]
[312716870,1706188795640,-1085.14,0.00049315,31]
[312716871,1706188795664,-505.01348304,0.00049315,31]
[312716872,1706188795689,-740.01,0.00049315,31]
[312716873,1706188795713,-538.22956674,0.00049315,31]
[312716874,1706188795743,-500.0,0.00049315,31]
[312716875,1706188795770,-505.56720239,0.00049315,31]
[312716876,1706188795796,-658.74,0.00049315,31]
[312716877,1706188795820,-500.0,0.00049315,31]
[312716878,1706188795846,-500.0,0.00049315,31]
[312716879,1706188795872,-728.72,0.00049315,31]
[312716880,1706188795898,-512.55584735,0.00049315,31]
[312716881,1706188795923,-510.0266843,0.00049315,31]
[312716882,1706188795949,-500.0,0.00049315,31]
[312716883,1706188795976,-1773.53,0.00049315,31]
[312716884,1706188796005,-1240.04,0.00049315,31]
[312716885,1706188796032,-599.04,0.00049315,31]
[312716886,1706188796057,-808.35,0.00049315,31]
[312716887,1706188796083,-605.14,0.00049315,31]
[312716888,1706188796108,-500.0,0.00049315,31]
[312716889,1706188796137,-880.58,0.00049315,31]
[312716890,1706188796162,-500.0,0.00049315,31]
[312716891,1706188796187,-506.06002661,0.00049315,31]
[312716892,1706188796212,-500.0,0.00049315,31]
[312716893,1706188796237,-500.0,0.00049315,31]
[312716894,1706188796263,-903.12,0.00049315,31]
[312716895,1706188796288,-545.45,0.00049315,31]
[312716896,1706188796313,-508.84932274,0.00049315,31]
[312716897,1706188796338,-361.60486279,0.00049315,31]
[312716898,1706188796362,-511.83395678,0.00049315,31]
[312716899,1706188796389,-500.0,0.00049315,31]
[312716900,1706188796415,-3577.61,0.00049315,31]
[312716901,1706188796443,-500.0,0.00049315,31]
[312716902,1706188796469,-505.65102719,0.00049315,31]
[312716903,1706188796495,-685.58,0.00049315,31]
[312716904,1706188796521,-512.95659628,0.00049315,31]
[312716905,1706188796547,-562.88,0.00049315,31]
[312716906,1706188796571,-952.48,0.00049315,31]
[312716907,1706188796596,-512.33948362,0.00049315,31]
[312716908,1706188796620,-500.0,0.00049315,31]
[312716909,1706188796644,-500.0,0.00049315,31]
[312716910,1706188796669,-500.0,0.00049315,31]
[312716911,1706188796694,-500.0,0.00049315,31]
[312716912,1706188796719,-818.92,0.00049315,31]
[312716913,1706188796743,-567.03,0.00049315,31]
[312716914,1706188796769,-500.0,0.00049315,31]
[312716915,1706188796795,-500.0,0.00049315,31]
[312716916,1706188796821,-504.4091115,0.00049315,31]
[312716917,1706188796846,-510.65730298,0.00049315,31]
[312716918,1706188796870,-702.34,0.00049315,31]
[312716919,1706188796896,-529.03,0.00049315,31]
[312716920,1706188796922,-500.0,0.00049315,31]
[312716921,1706188796949,-682.14,0.00049315,31]
[312716922,1706188796977,-506.1,0.00049315,31]
[312716923,1706188797002,-919.78,0.00049315,31]
[312716924,1706188797028,-500.0,0.00049315,31]
[312716925,1706188797054,-1207.59,0.00049315,31]
[312716926,1706188797080,-500.0,0.00049315,31]
[312716927,1706188797105,-511.42145255,0.00049315,31]
[312716928,1706188797133,-500.0,0.00049315,31]
[312716929,1706188797157,-500.0,0.00049315,31]
[312716930,1706188797183,-500.0,0.00049315,31]
[312716931,1706188797208,-575.64,0.00049315,31]
[312716932,1706188797235,-500.0,0.00049315,31]
[312716933,1706188797260,-500.0,0.00049315,31]
[312716934,1706188797284,-1305.94,0.00049315,31]
[312716935,1706188797309,-500.0,0.00049315,31]
[312716936,1706188797334,-503.70454211,0.00049315,31]
[312716937,1706188797358,-945.14,0.00049315,31]
[312716938,1706188797382,-515.56165081,0.00049315,31]
[312716939,1706188797408,-668.31,0.00049315,31]
[312716940,1706188797433,-500.0,0.00049315,31]
[312716941,1706188797457,-500.0,0.00049315,31]
[312716942,1706188797483,-538.49,0.00049315,31]
[312716943,1706188797508,-919.42,0.00049315,31]
[312716944,1706188797534,-500.0,0.00049315,31]
[312716945,1706188797559,-621.93,0.00049315,31]
[312716946,1706188797586,-1198.03,0.00049315,31]
[312716947,1706188797612,-791.89,0.00049315,31]
[312716948,1706188797636,-500.0,0.00049315,31]
[312716949,1706188797660,-500.0,0.00049315,31]
[312716950,1706188797685,-1243.05,0.00049315,31]
[312716951,1706188797709,-500.0,0.00049315,31]
[312716952,1706188797732,-558.35,0.00049315,31]
[312716953,1706188797758,-500.0,0.00049315,31]
[312716954,1706188797783,-503.98203596,0.00049315,31]
[312716955,1706188797807,-366.42170756,0.00049315,31]
[312716956,1706188797831,-500.0,0.00049315,31]
[312716957,1706188797855,-500.0,0.00049315,31]
[312716958,1706188798054,-524.36605223,0.00049315,30]
[312716959,1706188798080,-510.75652576,0.00049315,31]
[312716960,1706188798104,-500.0,0.00049315,31]
[312716961,1706188798130,-500.0,0.00049315,31]
[312716962,1706188798154,-517.3,0.00049315,31]
[312716963,1706188798178,-506.75883016,0.00049315,31]
[312716964,1706188798203,-689.62,0.00049315,31]
[312716965,1706188798228,-500.0,0.00049315,31]
[312716966,1706188798253,-500.0,0.00049315,31]
[312716967,1706188798276,-504.11,0.00049315,31]
[312716968,1706188798300,-720.97,0.00049315,31]
[312716969,1706188798324,-2344.2,0.00049315,31]
[312716970,1706188798348,-500.0,0.00049315,31]
[312716971,1706188798372,-500.0,0.00049315,31]
[312716972,1706188798395,-500.0,0.00049315,31]
[312716973,1706188798422,-509.85857867,0.00049315,31]
[312716974,1706188798446,-691.44,0.00049315,31]
[312716975,1706188798470,-1094.16,0.00049315,31]
[312716976,1706188798494,-503.46800236,0.00049315,31]
[312716977,1706188798519,-550.56,0.00049315,31]
[312716978,1706188798542,-500.0,0.00049315,31]
[312716979,1706188798565,-154.26916752,0.00049315,31]
[312716980,1706188798589,-518.45,0.00049315,31]
[312716981,1706188798613,-900.04,0.00049315,31]
[312716982,1706188798638,-500.0,0.00049315,31]
[312716983,1706188798661,-900.8,0.00049315,31]
[312716984,1706188798684,-500.0,0.00049315,31]
[312716985,1706188798707,-500.0,0.00049315,31]
[312716986,1706188798731,-500.76,0.00049315,31]
[312716987,1706188798754,-508.52170328,0.00049315,31]
[312716988,1706188798778,-200.77060399,0.00049315,31]
[312716989,1706188798801,-521.94,0.00049315,31]
[312716990,1706188798825,-500.0,0.00049315,31]
[312716991,1706188798848,-500.0,0.00049315,31]
[312716992,1706188798872,-509.32335791,0.00049315,31]
[312716993,1706188798898,-500.0,0.00049315,31]
[312716994,1706188798921,-890.01,0.00049315,31]
[312716995,1706188798945,-507.81420112,0.00049315,31]
[312716996,1706188798968,-515.11785454,0.00049315,31]
[312716997,1706188798993,-634.63,0.00049315,31]
[312716998,1706188799016,-511.14846033,0.00049315,31]
[312716999,1706188799040,-500.0,0.00049315,31]
[312717000,1706188799063,-500.0,0.00049315,31]
[312717001,1706188799086,-500.0,0.00049315,31]
[312717002,1706188799112,-500.0,0.00049315,31]
[312717003,1706188799138,-500.0,0.00049315,31]
[312717004,1706188799163,-232.82299103,0.00049315,31]
[312717005,1706188799188,-1000.0,0.00049315,30]
[312717006,1706188799212,-549.51923039,0.00049315,31]
[312717007,1706188799235,-4298.96,0.00049315,31]
[312717008,1706188799259,-244.46341248,0.00049315,31]
[312717009,1706188799282,-414.09396937,0.00049315,31]
[312717010,1706188799306,-500.0,0.00049315,31]
[312717011,1706188799330,-508.08389611,0.00049315,31]
[312717012,1706188799354,-527.05682476,0.00049315,31]
[312717013,1706188799379,-504.57056721,0.00049315,31]
[312717014,1706188799403,-500.0,0.00049315,31]
[312717015,1706188799428,-500.0,0.00049315,31]
[312717016,1706188799451,-500.0,0.00049315,31]
[312717017,1706188799477,-500.0,0.00049315,31]
[312717018,1706188799502,-500.0,0.00049315,31]
[312717019,1706188799527,-500.0,0.00049315,31]
[312717020,1706188799552,-834.57,0.00049315,31]
[312717021,1706188799575,-500.0,0.00049315,31]
[312717022,1706188799598,-507.76550503,0.00049315,31]
[312717023,1706188799622,-500.0,0.00049315,31]
[312717024,1706188799646,-2659.22,0.00049315,31]
[312717025,1706188799671,-500.0,0.00049315,31]
[312717026,1706188799695,-500.0,0.00049315,31]
[312717027,1706188799720,-500.0,0.00049315,31]
[312717028,1706188799745,-500.0,0.00049315,31]
[312717029,1706188799769,-509.90656728,0.00049315,31]
[312717030,1706188799794,-706.5,0.00049315,31]
[312717031,1706188799819,-502.47,0.00049315,31]
[312717032,1706188799844,-500.0,0.00049315,31]
[312717033,1706188799868,-500.0,0.00049315,31]
[312717034,1706188799894,-511.82,0.00049315,31]
[312717035,1706188799919,-735.0,0.00049315,31]
[312717036,1706188799943,-500.0,0.00049315,31]
[312717037,1706188799967,-500.0,0.00049315,31]
[312717038,1706188799992,-500.0,0.00049315,31]
[312717039,1706188800019,-650.71,0.00049315,31]
[312717040,1706188800046,-500.0,0.00049315,31]
[312717041,1706188800072,-515.77,0.00049315,31]
[312717042,1706188800098,-506.11234291,0.00049315,31]
[312717043,1706188800123,-500.0,0.00049315,31]
[312717044,1706188800147,-2609.6,0.00049315,31]
[312717045,1706188800171,-506.11609983,0.00049315,31]
[312717046,1706188800196,-507.820751,0.00049315,31]
[312717047,1706188800220,-1043.27,0.00049315,31]
[312717048,1706188800244,-2400.0,0.00049315,30]
[312717049,1706188800270,-1356.34664087,0.00049329,30]
[312717050,1706188800295,-572.07246931,0.00049333,30]
[312717051,1706188800320,-156.51295806,0.00049339,30]
[312717052,1706188800344,-1356.34664087,0.00049343,30]
[312717053,1706188800369,-428.88543574,0.00049345,30]
[312717054,1706188800394,-158.9923502,0.00049358,30]
[312717055,1706188800420,-1356.34664087,0.00049364,30]
[312717056,1706188800446,-400.83273352,0.00049369,30]
[312717057,1706188800471,-161.46382068,0.00049409,30]
[312717058,1706188800496,-153.46651434,0.00049428,30]
[312717059,1706188800521,-500.0,0.00049438,30]
[312717060,1706188800548,-158.64926303,0.00049453,30]
[312717061,1706188800578,-428.88543574,0.00049459,30]
[312717062,1706188800605,-153.90506379,0.00049461,30]
[312717063,1706188800794,-169.67902905,0.000495,30]
[312717064,1706188800823,-572.07246931,0.00049544,30]
[312717065,1706188800850,-150.9730791,0.00049548,30]
[312717066,1706188800876,-10000.0,0.0004955,30]
[312717067,1706188800902,-156.5932141,0.00049581,30]
[312717068,1706188800927,-162.32786329,0.00049585,30]
[312717069,1706188800953,-500.0,0.00049589,31]
[312717070,1706188800978,-1224.41,0.00049589,31]
[312717071,1706188801002,-500.0,0.00049589,31]
[312717072,1706188801028,-500.0,0.00049589,31]
[312717073,1706188801056,-551.45,0.00049589,31]
[312717074,1706188801083,-500.0,0.00049589,31]
[312717075,1706188801109,-500.0,0.00049589,31]
[312717076,1706188801135,-500.0,0.00049589,31]
[312717077,1706188801161,-500.0,0.00049589,31]
[312717078,1706188801186,-1626.34,0.00049589,31]
[312717079,1706188801211,-500.0,0.00049589,31]
[312717080,1706188801237,-500.0,0.00049589,31]
[312717081,1706188801263,-500.0,0.00049589,31]
[312717082,1706188801289,-2576.58,0.00049589,31]
[312717083,1706188801314,-500.0,0.00049589,31]
[312717084,1706188801340,-164.7124604,0.00049589,31]
[312717085,1706188801365,-500.0,0.00049589,31]
[312717086,1706188801391,-500.0,0.00049589,31]
[312717087,1706188801418,-500.0,0.00049589,31]
[312717088,1706188801445,-257.29660081,0.00049589,31]
[312717089,1706188801470,-500.0,0.00049589,31]
[312717090,1706188801495,-500.0,0.00049589,31]
[312717091,1706188801522,-500.0,0.00049589,31]
[312717092,1706188801548,-500.0,0.00049589,31]
[312717093,1706188801575,-500.0,0.00049589,31]
[312717094,1706188801602,-500.0,0.00049589,31]
[312717095,1706188801627,-500.0,0.00049589,31]
[312717096,1706188801652,-500.0,0.00049589,31]
[312717097,1706188801680,-515.26919727,0.00049589,31]
[312717098,1706188801705,-243.40936125,0.00049589,31]
[312717099,1706188801729,-500.0,0.00049589,31]
[312717100,1706188801753,-500.0,0.00049589,31]
[312717101,1706188801780,-500.0,0.00049589,31]
[312717102,1706188801806,-500.0,0.00049589,31]
[312717103,1706188801831,-687.4,0.00049589,31]
[312717104,1706188801857,-500.0,0.00049589,31]
[312717105,1706188801882,-500.0,0.00049589,31]
[312717106,1706188801906,-500.0,0.00049589,31]
[312717107,1706188801929,-500.0,0.00049589,31]
[312717108,1706188801953,-500.0,0.00049589,31]
[312717109,1706188801978,-485.95347265,0.00049589,31]
[312717110,1706188802005,-500.0,0.00049589,31]
[312717111,1706188802033,-624.67,0.00049589,31]
[312717112,1706188802060,-500.0,0.00049589,31]
[312717113,1706188802086,-547.39443607,0.00049589,31]
[312717114,1706188802111,-500.0,0.00049589,31]
[312717115,1706188802137,-500.0,0.00049589,31]
[312717116,1706188802163,-500.0,0.00049589,31]
[312717117,1706188802188,-500.0,0.00049589,31]
[312717118,1706188802211,-296.51546343,0.00049589,31]
[312717119,1706188802235,-500.0,0.00049589,31]
[312717120,1706188802260,-500.0,0.00049589,31]
[312717121,1706188802286,-255.32483087,0.00049589,31]
[312717122,1706188802309,-500.0,0.00049589,31]
[312717123,1706188802334,-500.0,0.00049589,31]
[312717124,1706188802358,-500.0,0.00049589,31]
[312717125,1706188802383,-500.0,0.00049589,31]
[312717126,1706188802407,-500.0,0.00049589,31]
[312717127,1706188802434,-500.0,0.00049589,31]
[312717128,1706188802460,-500.0,0.00049589,31]
[312717129,1706188802484,-500.0,0.00049589,31]
[312717130,1706188802511,-500.0,0.00049589,31]
[312717131,1706188802537,-500.0,0.00049589,31]
[312717132,1706188802563,-500.0,0.00049589,31]
[312717133,1706188802590,-500.0,0.00049589,31]
[312717134,1706188802616,-543.47,0.00049589,31]
[312717135,1706188802641,-500.0,0.00049589,31]
[312717136,1706188802665,-500.0,0.00049589,31]
[312717137,1706188802690,-500.0,0.00049589,31]
[312717138,1706188802715,-500.0,0.00049589,31]
[312717139,1706188802740,-500.0,0.00049589,31]
[312717140,1706188802765,-511.97,0.00049589,31]
[312717141,1706188802790,-500.0,0.00049589,31]
[312717142,1706188802814,-500.0,0.00049589,31]
[312717143,1706188802839,-500.0,0.00049589,31]
[312717144,1706188802864,-500.0,0.00049589,31]
[312717145,1706188802890,-500.0,0.00049589,31]
[312717146,1706188802917,-500.0,0.00049589,31]
[312717147,1706188802942,-500.0,0.00049589,31]
[312717148,1706188802967,-500.0,0.00049589,31]
[312717149,1706188802992,-500.0,0.00049589,31]
[312717150,1706188803016,-500.0,0.00049589,31]
[312717151,1706188803042,-500.0,0.00049589,31]
[312717152,1706188803068,-500.0,0.00049589,31]
[312717153,1706188803092,-500.0,0.00049589,31]
[312717154,1706188803118,-500.0,0.00049589,31]
[312717155,1706188803144,-500.0,0.00049589,31]
[312717156,1706188803168,-500.0,0.00049589,31]
[312717157,1706188803191,-500.0,0.00049589,31]
[312717158,1706188803216,-500.0,0.00049589,31]
[312717159,1706188803241,-500.0,0.00049589,31]
[312717160,1706188803266,-500.0,0.00049589,31]
[312717161,1706188803289,-500.0,0.00049589,31]
[312717162,1706188803315,-500.0,0.00049589,31]
[312717163,1706188803340,-500.0,0.00049589,31]
[312717164,1706188803367,-520.94,0.00049589,31]
[312717165,1706188803394,-674.26,0.00049589,31]
[312717166,1706188803422,-410.1776729,0.00049589,31]
[312717167,1706188803608,-500.0,0.00049589,31]
[312717168,1706188803634,-500.0,0.00049589,31]
[312717169,1706188803659,-507.58,0.00049589,31]
[312717170,1706188803683,-500.0,0.00049589,31]
[312717171,1706188803709,-500.0,0.00049589,31]
[312717172,1706188803734,-500.0,0.00049589,31]
[312717173,1706188803758,-500.0,0.00049589,31]
[312717174,1706188803783,-449.63844238,0.00049589,31]
[312717175,1706188803808,-500.0,0.00049589,31]
[312717176,1706188803833,-500.0,0.00049589,31]
[312717177,1706188803856,-500.0,0.00049589,31]
[312717178,1706188803880,-500.0,0.00049589,31]
[312717179,1706188803903,-528.98534135,0.00049589,31]
[312717180,1706188803926,-544.12698239,0.00049589,31]
[312717181,1706188803948,-500.0,0.00049589,31]
[312717182,1706188803971,-500.0,0.00049589,31]
[312717183,1706188803994,-500.0,0.00049589,31]
[312717184,1706188804017,-500.0,0.00049589,31]
[312717185,1706188804042,-500.0,0.00049589,31]
[312717186,1706188804065,-500.0,0.00049589,31]
[312717187,1706188804089,-500.0,0.00049589,31]
[312717188,1706188804112,-371.60980394,0.00049589,31]
[312717189,1706188804136,-500.0,0.00049589,31]
[312717190,1706188804161,-519.99036431,0.00049589,31]
[312717191,1706188804185,-516.68012732,0.00049589,31]
[312717192,1706188804208,-500.0,0.00049589,31]
[312717193,1706188804232,-500.0,0.00049589,31]
[312717194,1706188804257,-500.0,0.00049589,31]
[312717195,1706188804283,-500.0,0.00049589,31]
[312717196,1706188804307,-500.0,0.00049589,31]
[312717197,1706188804331,-500.0,0.00049589,31]
[312717198,1706188804355,-500.0,0.00049589,31]
[312717199,1706188804381,-500.0,0.00049589,31]
[312717200,1706188804406,-500.0,0.00049589,31]
[312717201,1706188804431,-500.0,0.00049589,31]
[312717202,1706188804456,-500.0,0.00049589,31]
[312717203,1706188804482,-500.0,0.00049589,31]
[312717204,1706188804508,-500.0,0.00049589,31]
[312717205,1706188804533,-500.0,0.00049589,31]
[312717206,1706188804558,-500.0,0.00049589,31]
[312717207,1706188804582,-500.0,0.00049589,31]
[312717208,1706188804607,-500.0,0.00049589,31]
[312717209,1706188804633,-500.0,0.00049589,31]
[312717210,1706188804659,-500.0,0.00049589,31]
[312717211,1706188804684,-622.82,0.00049589,31]
[312717212,1706188804709,-848.34,0.00049589,31]
[312717213,1706188804734,-500.0,0.00049589,31]
[312717214,1706188804758,-500.0,0.00049589,31]
[312717215,1706188804782,-500.0,0.00049589,31]
[312717216,1706188804807,-500.0,0.00049589,31]
[312717217,1706188804830,-500.0,0.00049589,31]
[312717218,1706188804854,-500.0,0.00049589,31]
[312717219,1706188804880,-692.14,0.00049589,31]
[312717220,1706188804906,-500.0,0.00049589,31]
[312717221,1706188804930,-500.0,0.00049589,31]
[312717222,1706188804955,-500.0,0.00049589,31]
[312717223,1706188804980,-500.0,0.00049589,31]
[312717224,1706188805006,-723.91,0.00049589,31]
[312717225,1706188805031,-531.51,0.00049589,31]
[312717226,1706188805058,-500.0,0.00049589,31]
[312717227,1706188805083,-500.0,0.00049589,31]
[312717228,1706188805109,-500.0,0.00049589,31]
[312717229,1706188805133,-500.0,0.00049589,31]
[312717230,1706188805157,-500.0,0.00049589,31]
[312717231,1706188805180,-500.0,0.00049589,31]
[312717232,1706188805204,-500.0,0.00049589,31]
[312717233,1706188805228,-500.0,0.00049589,31]
[312717234,1706188805252,-500.0,0.00049589,31]
[312717235,1706188805276,-500.0,0.00049589,31]
[312717236,1706188805300,-500.0,0.00049589,31]
[312717237,1706188805324,-500.0,0.00049589,31]
[312717238,1706188805349,-500.0,0.00049589,31]
[312717239,1706188805372,-500.0,0.00049589,31]
[312717240,1706188805395,-500.0,0.00049589,31]
[312717241,1706188805420,-500.0,0.00049589,31]
[312717242,1706188805446,-500.0,0.00049589,31]
[312717243,1706188805470,-500.0,0.00049589,31]
[312717244,1706188805494,-500.0,0.00049589,31]
[312717245,1706188805519,-500.0,0.00049589,31]
[312717246,1706188805543,-518.42,0.00049589,31]
[312717247,1706188805567,-500.0,0.00049589,31]
[312717248,1706188805591,-556.54,0.00049589,31]
[312717249,1706188805615,-500.0,0.00049589,31]
[312717250,1706188805639,-500.0,0.00049589,31]
[312717251,1706188805663,-500.0,0.00049589,31]
[312717252,1706188805687,-500.0,0.00049589,31]
[312717253,1706188805712,-500.0,0.00049589,31]
[312717254,1706188805736,-250.0,0.00049589,31]
[312717255,1706188805760,-568.52,0.00049589,31]
[312717256,1706188805785,-500.0,0.00049589,31]
[312717257,1706188805810,-653.44,0.00049589,31]
[312717258,1706188805835,-500.0,0.00049589,31]
[312717259,1706188805861,-500.0,0.00049589,31]
[312717260,1706188805886,-500.0,0.00049589,31]
[312717261,1706188805911,-500.0,0.00049589,31]
[312717262,1706188805936,-500.0,0.00049589,31]
[312717263,1706188805964,-500.0,0.00049589,31]
[312717264,1706188805989,-500.0,0.00049589,31]
[312717265,1706188806013,-500.0,0.00049589,31]
[312717266,1706188806036,-500.0,0.00049589,31]
[312717267,1706188806061,-500.0,0.00049589,31]
[312717268,1706188806085,-500.0,0.00049589,31]
[312717269,1706188806110,-628.96,0.00049589,31]
[312717270,1706188806138,-500.0,0.00049589,31]
[312717271,1706188806329,-500.0,0.00049589,31]
[312717272,1706188806355,-523.72,0.00049589,31]
[312717273,1706188806379,-500.0,0.00049589,31]
[312717274,1706188806404,-500.0,0.00049589,31]
[312717275,1706188806429,-899.54,0.00049589,31]
[312717276,1706188806454,-500.0,0.00049589,31]
[312717277,1706188806478,-500.0,0.00049589,31]
[312717278,1706188806504,-500.0,0.00049589,31]
[312717279,1706188806530,-500.0,0.00049589,31]
[312717280,1706188806554,-500.0,0.00049589,31]
[312717281,1706188806577,-500.0,0.00049589,31]
[312717282,1706188806602,-500.0,0.00049589,31]
[312717283,1706188806625,-500.0,0.00049589,31]
[312717284,1706188806650,-500.0,0.00049589,31]
[312717285,1706188806675,-500.0,0.00049589,31]
[312717286,1706188806698,-500.0,0.00049589,31]
[312717287,1706188806722,-500.0,0.00049589,31]
[312717288,1706188806746,-500.0,0.00049589,31]
[312717289,1706188806771,-500.0,0.00049589,31]
[312717290,1706188806795,-500.0,0.00049589,31]
[312717291,1706188806818,-500.0,0.00049589,31]
[312717292,1706188806842,-500.0,0.00049589,31]
[312717293,1706188806866,-528.11,0.00049589,31]
[312717294,1706188806890,-500.0,0.00049589,31]
[312717295,1706188806913,-500.0,0.00049589,31]
[312717296,1706188806939,-500.0,0.00049589,31]
[312717297,1706188806964,-522.20921084,0.00049589,31]
[312717298,1706188806987,-1037.12,0.00049589,31]
[312717299,1706188807011,-500.0,0.00049589,31]
[312717300,1706188807037,-221.51655805,0.00049589,31]
[312717301,1706188807062,-500.0,0.00049589,31]
[312717302,1706188807086,-500.0,0.00049589,31]
[312717303,1706188807111,-500.0,0.00049589,30]
[312717304,1706188807134,-302.6347595,0.00049589,31]
[312717305,1706188807158,-500.0,0.00049589,31]
[312717306,1706188807183,-500.0,0.00049589,31]
[312717307,1706188807207,-500.0,0.00049589,31]
[312717308,1706188807231,-500.0,0.00049589,31]
[312717309,1706188807255,-500.0,0.00049589,31]
[312717310,1706188807281,-500.0,0.00049589,31]
[312717311,1706188807306,-500.0,0.00049589,31]
[312717312,1706188807330,-500.0,0.00049589,31]
[312717313,1706188807354,-500.0,0.00049589,31]
[312717314,1706188807380,-500.0,0.00049589,31]
[312717315,1706188807404,-500.0,0.00049589,31]
[312717316,1706188807429,-500.0,0.00049589,31]
[312717317,1706188807453,-500.0,0.00049589,31]
[312717318,1706188807478,-500.0,0.00049589,31]
[312717319,1706188807504,-500.0,0.00049589,31]
[312717320,1706188807531,-500.0,0.00049589,31]
[312717321,1706188807554,-500.0,0.00049589,31]
[312717322,1706188807579,-500.0,0.00049589,31]
[312717323,1706188807604,-500.0,0.00049589,31]
[312717324,1706188807628,-500.0,0.00049589,31]
[312717325,1706188807653,-500.0,0.00049589,31]
[312717326,1706188807677,-500.0,0.00049589,31]
[312717327,1706188807701,-500.0,0.00049589,31]
[312717328,1706188807725,-500.0,0.00049589,31]
[312717329,1706188807749,-500.0,0.00049589,31]
[312717330,1706188807773,-159.05197302,0.00049589,31]
[312717331,1706188807797,-500.0,0.00049589,31]
[312717332,1706188807822,-500.0,0.00049589,31]
[312717333,1706188807847,-500.0,0.00049589,31]
[312717334,1706188807870,-500.0,0.00049589,31]
[312717335,1706188807892,-500.0,0.00049589,31]
[312717336,1706188807915,-500.0,0.00049589,31]
[312717337,1706188807937,-500.0,0.00049589,31]
[312717338,1706188807961,-501.9,0.00049589,31]
[312717339,1706188807985,-533.46,0.00049589,31]
[312717340,1706188808009,-298.45229356,0.00049589,31]
[312717341,1706188808033,-500.0,0.00049589,31]
[312717342,1706188808056,-1106.47,0.00049589,31]
[312717343,1706188808079,-500.0,0.00049589,31]
[312717344,1706188808102,-500.0,0.00049589,31]
[312717345,1706188808126,-500.0,0.00049589,31]
[312717346,1706188808151,-500.0,0.00049589,31]
[312717347,1706188808175,-500.0,0.00049589,31]
[312717348,1706188808199,-500.0,0.00049589,31]
[312717349,1706188808225,-500.0,0.00049589,31]
[312717350,1706188808248,-236.58561131,0.00049589,31]
[312717351,1706188808271,-500.0,0.00049589,31]
[312717352,1706188808294,-3932.94,0.00049589,30]
[312717353,1706188808317,-500.0,0.00049589,31]
[312717354,1706188808340,-553.31,0.00049589,31]
[312717355,1706188808363,-500.0,0.00049589,31]
[312717356,1706188808387,-500.0,0.00049589,31]
[312717357,1706188808410,-500.0,0.00049589,31]
[312717358,1706188808433,-1880.79,0.00049589,31]
[312717359,1706188808456,-582.46,0.00049589,31]